Cogmind - Beta 17 @@@ ROGUE MODE // 2026.06.29 @ 17:26:12 Player: N.W.L. Result: Self-destructed Performance ------------- Evolutions (2) 1000 Regions Visited (3) 600 Robots Destroyed (74) 370 Value Destroyed (1564) 1564 Prototype IDs (14) 280 Alien Tech Used (0) 0 Bonus (-84) -84 TOTAL SCORE: 3730 Bonus ------- Friendly Fire -84 Cogmind --------- Core Integrity 534/550 Matter 234/300 Energy 116/200 System Corruption 0% Temperature Cool (45) Movement Treading (160) Location -8/Materials Parts ------- > --- POWER (1) -------- Subdweller Power Source > --- PROPULSION (2) --- Improved Treads Spiked Treads > --- UTILITY (5) ------ Backup Plating I Scrap Shield > --- WEAPON (3) ------- Subdweller Beam Cannon Battle Cannon > --- INVENTORY (5) ---- Improved Treads Spiked Treads Power Bank Subdweller Beam Cannon Multitool Peak State ------------ > --- POWER ------------ Makeshift Power Source > --- PROPULSION ------- Improved Treads Improved Treads > --- UTILITY ---------- Large Storage Unit Makeshift Light Armor Plating > --- WEAPON ----------- Battle Rifle Light Cannon > --- INVENTORY -------- Light Treads Light Treads Light Treads Improved Treads Improved Treads Seismic Detector Makeshift System Shield Trap Extractor Trap Extractor Light Cannon Light Cannon Light Cannon Light Cannon Grenade Launcher Datajack [Rating: 18] Favorites ----------- Power Ion Engine Engine Ion Engine Propulsion Improved Treads Treads Improved Treads Utility Large Storage Unit Device Seismic Detector Storage Large Storage Unit Protection Scrap Shield Weapon Light Cannon Energy Gun Small Laser Energy Cannon Subdweller Beam Cannon Ballistic Gun Subdweller Machine Gun Ballistic Cannon Light Cannon Launcher Grenade Launcher Special Melee Weapon Datajack Build | -11 -10 -10 -8 ------- Run | Yrd Mat Sub Mat Slots Evolved 4 | . . . 4 Power . | . . . . Propulsion . | . . . . Utility 3 | . . . 3 Weapon 1 | . . . 1 Parts Attached 46 | 7 19 19 1 Power 3 | . 1 2 . Engine 3 | . 1 2 . Core . | . . . . Reactor . | . . . . Propulsion 9 | 2 2 5 . Treads 9 | 2 2 5 . Leg . | . . . . Wheel . | . . . . Hover . | . . . . Flight . | . . . . Utility 9 | 2 4 2 1 Device 3 | 1 2 . . Storage 2 | 1 1 . . Processor . | . . . . Hackware . | . . . . Protection 4 | . 1 2 1 Artifact . | . . . . Weapon 25 | 3 12 10 . Energy Gun 1 | 1 . . . Energy Cannon 4 | . 2 2 . Ballistic Gun 10 | 2 4 4 . Ballistic Cannon 7 | . 3 4 . Launcher 2 | . 2 . . Special Weapon . | . . . . Impact Weapon . | . . . . Slashing Weapon . | . . . . Piercing Weapon . | . . . . Special Melee Weapon 1 | . 1 . . Unidentified Prototypes . | . . . . Parts Lost 3 | . . 3 . Power 2 | . . 2 . Propulsion . | . . . . Utility . | . . . . Weapon 1 | . . 1 . Highest Loss Streak 1 | . . 1 . To Critical Strikes 1 | . . 1 . Average Backups 9 | . 11 9 5 Power . | . . . . Propulsion 3 | . 2 3 2 Utility 2 | . 2 2 1 Weapon 3 | . 5 3 1 Tool/Special . | . . . . Unused Backups 18 | . 9 7 2 Power 2 | . 2 . . Propulsion 4 | . 1 3 . Utility 5 | . 2 2 1 Weapon 5 | . 4 1 . Tool/Special 2 | . . 1 1 Average Slot Usage (%) 91 | . 98 88 59 Engine 11 | . 12 10 9 Treads 27 | . 28 28 18 Device 4 | . 10 1 . Storage 8 | . 13 6 . Protection 9 | . 3 12 14 Energy Cannon 7 | . 6 7 9 Ballistic Gun 3 | . 6 2 . Ballistic Cannon 14 | . 9 17 9 Peak Build Rating 18 | 6 12 18 16 Average Rating 12 | 4 9 13 15 On Entrance 7 | . 6 10 15 Avg Prop Armor Cover (%) . | . . . . Naked Turns . | . . . . Heaviest Build 35 | 9 32 35 35 Greatest Support 46 | 40 46 46 43 Greatest Overweight (x) . | . . . . Average Overweight (x) . | . . . . Largest Inventory Capacity 15 | 8 15 15 5 Average Capacity 10 | 6 12 9 5 Most Carried 15 | 2 15 15 5 Average Carried 9 | . 11 9 5 Final Capacity 15 | 8 15 5 5 Final Carried 15 | 2 15 5 5 Class Distribution -------------------- 35% | Mutant 34% | Trapper-Mutant 30% | Subdweller-Mutant Dominant Class ---------------- Mutant | -10/Materials Trapper-Mutant | -10/Subcaves Subdweller-Mutant | -8/Materials Resources | -11 -10 -10 -8 ----------- Run | Yrd Mat Sub Mat Matter Collected 1824 | 236 486 1078 24 Remotely . | . . . . Salvage Created 1647 | 156 612 745 134 Parts 138 | 7 65 54 12 Haulers Intercepted 3 | . 2 . 1 Recyclers Shooed . | . . . . Parts Field Recycled . | . . . . Retrieved Matter . | . . . . Parts Self-Destructed 16 | . . 16 . Prevented . | . . . . Parts Restored . | . . . . Kills | -11 -10 -10 -8 ------- Run | Yrd Mat Sub Mat Combat Hostiles Destroyed 49 | . 18 27 4 Cannons 32 | . 5 24 3 AOE 15 | . 13 2 . Classes Destroyed 14 | 2 8 4 . Worker 5 | . 4 . 1 Builder 3 | . 2 . 1 Tunneler 3 | 3 . . . Hauler 3 | . 2 . 1 Recycler 2 | 1 1 . . Mechanic 1 | . 1 . . Operator 2 | . 2 . . Turret 2 | . . 2 . Watcher 2 | . 2 . . Swarmer 20 | . 11 5 4 Grunt 11 | . 7 4 . Sentry 1 | . . 1 . Subdweller 17 | . . 17 . Zionite 2 | . . 2 . Best Kill Streak 7 | 3 5 4 7 Combat Bots Only 4 | . 3 4 4 Max Kills in Single Turn 4 | 1 4 2 2 Gunslinging . | . . . . Exploded 3 | . 3 2 . Melee . | . . . . Uniques/NPCs Destroyed . | . . . . Combat | -11 -10 -10 -8 -------- Run | Yrd Mat Sub Mat Hostile Shots Fired 190 | . 39 121 30 Missed 46 | . 10 29 7 Hits 144 | . 29 92 23 Projectile 144 | . 29 92 23 Critical Strikes 2 | . . 2 . Damage Taken 2160 | . 292 1680 188 Core 190 | . 33 141 16 Absorbed by Shields . | . . . . Core Remaining (%) 65 | 100 . 30 . Volleys Fired 215 | 7 54 142 12 Largest 2 | 2 2 2 2 Hottest 120 | 60 120 110 113 Shots Fired 315 | 14 90 190 21 Gun 50 | 14 20 16 . Cannon 237 | . 55 161 21 Launcher 28 | . 15 13 . Special . | . . . . Kinetic 178 | 7 27 132 12 Thermal 109 | 7 48 45 9 Explosive 28 | . 15 13 . Electromagnetic . | . . . . Robot Hit Streak 22 | 10 16 22 2 Robot Miss Streak 6 | 1 5 6 3 Penetration Max . | . . . . Secondary Targets . | . . . . Shots Hit Robots 172 | 10 44 112 6 Core Hits 94 | 4 40 45 5 Critical Kills 3 | . . 2 1 Critical Parts Destroyed . | . . . . Critical Strikes 10 | . 2 7 1 Meltdown 2 | . . 1 1 Destroy 1 | . . 1 . Blast 7 | . 2 5 . Melee Attacks 4 | . 2 2 . Impact . | . . . . Slashing . | . . . . Piercing . | . . . . Sneak Attacks 2 | . 2 . . Combat Hostiles . | . . . . Follow-up Attacks . | . . . . Damage Inflicted 4947 | 117 1745 2860 225 Guns 343 | 117 197 29 . Cannons 3211 | . 504 2482 225 Explosions 1363 | . 1019 344 . Melee . | . . . . Ramming 30 | . 25 5 . Kinetic 1768 | 54 250 1389 75 Thermal 1786 | 63 451 1122 150 Explosive 1363 | . 1019 344 . Electromagnetic . | . . . . Impact . | . . . . Slashing . | . . . . Piercing . | . . . . Highest Corruption . | . . . . Average Corruption . | . . . . Corruption Purged . | . . . . Corruption Blocked . | . . . . Overload Shots . | . . . . Overflow Damage 189 | . 132 37 20 Projectiles 67 | . 35 12 20 Explosions 122 | . 97 25 . Melee . | . . . . Knockbacks 18 | . 2 15 1 Impact . | . . . . Kinetic 18 | . 2 15 1 Secondary . | . . . . Self-Inflicted Damage 19 | . 8 11 . Shots 2 | . 1 1 . Rammed 5 | . 3 2 . Targets Rammed 5 | . 3 2 . Kicked . | . . . . Crushed . | . . . . Highest Temperature 320 | . 320 4 147 Average Temperature 96 | . 110 3 75 Received Heat Transfer 420 | . 78 342 . Effects 1 | . 1 . . Energy Bleed 1 | . 1 . . Siege Activations . | . . . . Martial Activations . | . . . . Shielding Activations . | . . . . Robots Disrupted . | . . . . Combat Hostiles . | . . . . Robots Corrupted . | . . . . Combat Hostiles . | . . . . Parts Fried . | . . . . Impact Corruptions . | . . . . Robots Melted 2 | . . 1 1 Combat Hostiles 2 | . . 1 1 Parts Melted 5 | . 1 3 1 Heat Transferred 2815 | 150 963 1517 185 Parts Sabotaged . | . . . . Parts Stolen . | . . . . Parts Stripped . | . . . . Power Chain Reactions . | . . . . Alert | -11 -10 -10 -8 ------- Run | Yrd Mat Sub Mat Maximum Alert Level . | . . . . Low Security (%) 100 | 100 100 . 100 Level 1 . | . . . . Level 2 . | . . . . Level 3 . | . . . . Level 4 . | . . . . Level 5 . | . . . . High Security . | . . . . Max Security . | . . . . Peak Influence 173 | 10 173 . 105 Initial 5 | . . . 5 Average 57 | 2 60 . 35 Influence Increases 1287 | 20 637 500 130 Destroy 0b10 Robot/C 680 | . 360 240 80 Destroy 0b10 Robot/NC 105 | 20 70 . 15 Destroy Leader 110 | . 78 20 12 Successful Hack 16 | . 16 . . Disable Machine 45 | . 30 . 15 Destroy Structure 76 | . 68 . 8 Lose Combat Pursuer 255 | . 15 240 . Influence Decreases 1182 | 20 528 597 37 Entered New Map 60 | . . 53 7 Time Decay 1092 | 20 528 514 30 Lost Part 30 | . . 30 . Squads Dispatched 2 | . 2 . . Investigation . | . . . . Extermination . | . . . . Reinforcement 2 | . 2 . . Assault . | . . . . Garrison . | . . . . Intercept . | . . . . Searches Triggered . | . . . . Construction Impeded . | . . . . Haulers Reinforced . | . . . . Active Scanning Responses . | . . . . Cargo Convoy Interrupts . | . . . . Stealth | -11 -10 -10 -8 --------- Run | Yrd Mat Sub Mat Distress Signals 3 | . 3 . . Communications Jammed . | . . . . Distress Signals . | . . . . Times Spotted 71 | . 36 31 4 Peak Tracking Total 5 | . 5 4 4 Tactical Retreats 3 | . 1 2 . Traps | -11 -10 -10 -8 ------- Run | Yrd Mat Sub Mat Traps Triggered 1 | . . 1 . Indirectly . | . . . . Trap Hack Attempts 70 | . 70 . . Triggered 1 | . 1 . . Disarmed 1 | . 1 . . Reprogrammed 8 | . 8 . . Reused 2 | . . 2 . Traps Extracted 8 | . 8 . . Installed 3 | . 1 2 . Triggered 2 | . . 2 . Most Traps Carried 7 | . 7 7 . Machines | -11 -10 -10 -8 ---------- Run | Yrd Mat Sub Mat Machines Disabled 7 | . 2 4 1 Max in Single Turn 2 | . 1 2 1 Machines Repaired . | . . . . Machines Dismantled . | . . . . Machines Sabotaged . | . . . . Overloaded Fab Kills . | . . . . Hacking | -11 -10 -10 -8 --------- Run | Yrd Mat Sub Mat Machines Accessed 10 | . 7 2 1 Terminals 6 | . 6 . . Fabricators . | . . . . Repair Stations 2 | . 1 . 1 Recycling Units . | . . . . Scanalyzers . | . . . . Garrison Access . | . . . . Total Hacks 21 | . 14 5 2 Successful 14 | . 9 5 . Failed 7 | . 5 . 2 Catastrophic . | . . . . Database Lockouts . | . . . . Manual 11 | . 11 . . Terminals 13 | . 13 . . Fabricators . | . . . . Repair Stations 3 | . 1 . 2 Recycling Units . | . . . . Scanalyzers . | . . . . Garrison Access . | . . . . Terminal Hacks 6 | . 1 5 . Record 4 | . . 4 . Robot Analysis 1 | . 1 . . Proto ID Catalog 1 | . . 1 . Fabricator Hacks . | . . . . Repair Station Hacks 1 | . 1 . . Refit 1 | . 1 . . Recycling Unit Hacks . | . . . . Scanalyzer . | . . . . Garrison Access Hacks . | . . . . Unauthorized Hacks 7 | . 7 . . Terminals 7 | . 7 . . Assimilate 1 | . 1 . . Botnet 1 | . 1 . . Skim 5 | . 5 . . Fabricators . | . . . . Repair Stations . | . . . . Recycling Units . | . . . . Scanalyzers . | . . . . Garrison Access . | . . . . Data Cores Recovered . | . . . . Used . | . . . . Hacking Detections 7 | . 6 . 1 Full Trace Events . | . . . . Feedback Events . | . . . . Feedback Blocked . | . . . . Robot Schematics Acquired . | . . . . Robots Built . | . . . . Authchips . | . . . . Time . | . . . . Total Robot Build Rating . | . . . . Part Schematics Acquired . | . . . . Parts Built . | . . . . Authchips . | . . . . Time . | . . . . Total Part Build Rating . | . . . . Part Studies Acquired . | . . . . Parts Repaired . | . . . . Time . | . . . . Parts Recycled . | . . . . Recycled Matter . | . . . . Retrieved Matter . | . . . . Retrieved Components . | . . . . Parts Scanalyzed . | . . . . Part Schematics Acquired . | . . . . Parts Damaged . | . . . . Bothacking | -11 -10 -10 -8 ------------ Run | Yrd Mat Sub Mat Used RIF Installer . | . . . . Robots Hacked 2 | . 1 1 . Non-combat 1 | . 1 . . Combat 1 | . . 1 . Robot Hacks Applied 2 | . 1 1 . parse_system 2 | . 1 1 . Relay Couplers Released . | . . . . Fabnet Peak Effective % . | . . . . Robots Rewired . | . . . . Allies Hacked . | . . . . Hacks Repelled . | . . . . Allies | -11 -10 -10 -8 -------- Run | Yrd Mat Sub Mat Total Allies 1 | . 1 . . Largest Group 1 | . 1 . . Highest-Rated Group 10 | . 10 . . Highest-Rated Ally 10 | . 10 . . Total Orders 6 | . 6 . . STAY 3 | . 3 . . FOLLOW 3 | . 3 . . Ally Attacks . | . . . . Total Damage . | . . . . Kills . | . . . . Allies Corrupted 1 | . . 1 . Allies Melted . | . . . . Intel | -11 -10 -10 -8 ------- Run | Yrd Mat Sub Mat Active Infowar (turns) 2237 | 23 1598 616 . Seismic 2237 | 23 1598 616 . Robot Analysis Total 1 | . 1 . . Derelict Logs Recovered . | . . . . Drone Launches . | . . . . Drone Recoveries . | . . . . Exploration | -11 -10 -10 -8 ------------- Run | Yrd Mat Sub Mat Turns Passed 7775 | 114 2282 5307 72 Spaces Moved 4000 | 54 1127 2798 21 Core 3 | 3 . . . Treads 3997 | 51 1127 2798 21 Legs . | . . . . Wheels . | . . . . Hover . | . . . . Flight . | . . . . Fastest Speed 50 | 50 160 160 160 Average Speed 159 | 153 160 160 160 Slowest Speed 160 | 160 160 160 160 Overloaded Moves . | . . . . Propulsion Burnouts . | . . . . Robots Hopped . | . . . . Potential Cave-ins . | . . . . Cave-ins Triggered . | . . . . Exploration Rate (%) 49 | 3 97 94 5 Regions Visited 3 Branch Regions 1 Pre-discovered Areas 3 | . 1 2 . Known Exits Taken 1 | . 1 . . Unknown Exits Taken 2 | 1 . 1 . Scrap Searched 16 | . . 16 . Spaces Dug 32 | . 32 . . Terrain Destroyed 124 | . 80 37 7 Melee . | . . . . Projectile 8 | . . 1 7 AOE 116 | . 80 36 . Terrain Rammed . | . . . . Walls Destroyed . | . . . . Machines Disabled . | . . . . Actions | -11 -10 -10 -8 --------- Run | Yrd Mat Sub Mat Total 5061 | 68 1522 3434 37 Wait 556 | . 154 402 . Move 3997 | 53 1126 2797 21 Hop . | . . . . Pick Up 62 | 1 45 16 . Fast Attach 23 | 6 8 7 2 Attach 4 | . 2 2 . Detach 4 | . 4 . . Swap 44 | 1 19 23 1 Drop 59 | . 34 24 1 Fire 215 | 7 54 142 12 Melee 4 | . 2 2 . Ram . | . . . . Kick . | . . . . Crush 5 | . 3 2 . Escape Stasis . | . . . . Rewire . | . . . . Trap 73 | . 71 2 . Miscellaneous 15 | . . 15 . Route ------- -11/Scrapyard -10/Materials (discovered 6 exits: [*Mat x3] / [*Min x2] / *Sub) -10/Subcaves (discovered 4 exits: *Mat x2 / *Rec / [Scr]) -8/Materials (discovered 2 exits: Fac x2) History --------- Turn | Location | Event 3 | -11/Scrapyard | Discovered new exit (range 16) 115 | -11/Scrapyard | Entered Materials 314 | -10/Materials | Build established: Mutant 612 | -10/Materials | Discovered new exit (range 16) 715 | -10/Materials | Discovered new exit (range 15) 981 | -10/Materials | Discovered new exit (range 15) 1314 | -10/Materials | Discovered new exit (range 8) 1921 | -10/Materials | Learned Storage interactive machine intel 2002 | -10/Materials | Learned location of 1 exit from Storage 2019 | -10/Materials | Discovered new exit (range 8) 2075 | -10/Materials | Learned location of Mines (-9) 2139 | -10/Materials | Loaded intel: 12 trap records 2265 | -10/Materials | Learned 2 Storage zone layouts 2308 | -10/Materials | Identified exit to Subcaves 2308 | -10/Materials | Learned location of 2 exits from Materials 2361 | -10/Materials | Build established: Trapper-Mutant 2397 | -10/Materials | Entered Subcaves 2397 | -10/Subcaves | Accompanied by 1 ally 2398 | -10/Subcaves | Approached by a straggling Scientist 2399 | -10/Subcaves | A swath of the cavern ceiling suddenly collapsed 2428 | -10/Subcaves | Visited Clippyterm 2433 | -10/Subcaves | Identified exit to Recycling 2433 | -10/Subcaves | Learned location of Extension (-5) 2759 | -10/Subcaves | Scientist uncovered a shortcut to Scraptown 2883 | -10/Subcaves | Discovered new exit (range 12) 2884 | -10/Subcaves | Shifting Twisted Machinery released Mak. System Shield 2892 | -10/Subcaves | Shifting Twisted Machinery released Sub. Power Source 2951 | -10/Subcaves | Learned location of Zion (-6) 2951 | -10/Subcaves | Met a Zionite searching for "candidates" 4373 | -10/Subcaves | Shifting Twisted Machinery released Battle Rifle 4470 | -10/Subcaves | A Subdweller sparked back to life 4562 | -10/Subcaves | Found Prototype Processor 4739 | -10/Subcaves | Core integrity fell below 50% 5026 | -10/Subcaves | Build established: Mutant 5731 | -10/Subcaves | Build established: Subdweller-Mutant 5910 | -10/Subcaves | Visited 4L-MR0's lab 5930 | -10/Subcaves | Found Power Bank 5934 | -10/Subcaves | Found Prototype Device 6503 | -10/Subcaves | Discovered new exit (range 8) 7704 | -10/Subcaves | Entered Materials 7704 | -8/Materials | Evolved 4 slots: Utility x3, Weapon x1 7705 | -8/Materials | Identified exit to Factory 7776 | -8/Materials | Self-destructed Last Messages --------------- 07754_ R-06 Scavenger collects Flight Unit. 07756_ Destroyed Flight Unit. 07756_ S-10 Pest destroyed. 07759_ Destroyed Flight Unit. 07759_ S-10 Pest knocked back. 07759_ R-06 Scavenger collects Structural Scanner. 07760_ U-05 Engineer builds a Wall. 07761_ K-01 Serf cleans the Fusion Modulator. 07762_ R-06 Scavenger collects Flight Unit. 07763_ R-06 Scavenger collects Terrain Scan Processor. 07764_ U-05 Engineer builds a Wall. 07765_ Acquired 24 matter. 07766_ K-01 Serf collects debris. 07767_ S-10 Pest destroyed. 07767_ U-05 Engineer builds a Wall. 07769_ K-01 Serf collects debris. 07770_ U-05 Engineer builds a Door. 07772_ K-01 Serf collects debris. 07773_ U-05 Engineer builds a Wall. 07773_ A-02 Transporter destroyed. Map ----- +----------------------------------------------------+ | ?????????????????????????????????????????????????? | | ?????????????????????????????????????????????????? | | ?????????????????????????????????????????????????? | | ?????????????????????????????????????????????????? | | ?????????????????????????????????????????????????? | | ?????????????????????????????????????????????????? | | ?????????????????????????????????????????????????? | | ?????????????????????????????????????????????????? | | ?????????????????????????????????????????????????? | | ?????????????????????????????????????????????????? | | ?????????????????????????????????????????????????? | | ??????????????????????? ?? ??????????????????????? | | ??????????????????????? ?? ??????????????????????? | | ?????????????????????##"##"#?????????????????????? | | ????????????????????? #?????????????????????? | | ????????????????????"" #?????????????????????? | | ???????????????????""" #?????????????????????? | | ???????????????????""" #?????????????????????? | | ??????????????????? ??????????????????????? | | ??????????????????#""" ! ]??????????????????????? | | ??????????? ??????#""" ??????????????????????? | | ?????????? ?????#""" ???????????????????????? | | ?????????? ??## ???????????????????????? | | ????????? #######u###########+###??????????? | | ????????? m %k!!%!! ????????? | | ????????? % % r @!!! ????????? | | ????????? % % ==! ????????? | | ?????????????########; ###+########+???????????? | | ????????????????????## #???????????????????????? | | ?????????????????????# #???????????????????????? | | ?????????????????????# #???????????????????????? | | ??????????????######## #???????????????????????? | | ??????????????# """ # #???????????????????????? | | ??????????????# " " # #???????????????????????? | | ??????????????# " " + #???????????????????????? | | ??????????????# # #???????????????????????? | | ??????????????# # #???????????????????????? | | ??????????????# # #???????????????????????? | | ??????????????############???????????????????????? | | ?????????????????????????????????????????????????? | | ?????????????????????????????????????????????????? | | ?????????????????????????????????????????????????? | | ?????????????????????????????????????????????????? | | ?????????????????????????????????????????????????? | | ?????????????????????????????????????????????????? | | ?????????????????????????????????????????????????? | | ?????????????????????????????????????????????????? | | ?????????????????????????????????????????????????? | | ?????????????????????????????????????????????????? | | ?????????????????????????????????????????????????? | +----------------------------------------------------+ Best States ------------- Heat Dissipation 31 Energy Generation 15 Energy Capacity 250 Matter Stores 300 Matter Capacity 300 Sight Range 16 Terrain Scan Density 10 Armor Coverage 880 Evasion (%) 40 Recoil Reduction 2 Trap Extractor Capacity 4 Item Schematics ----------------- None Robot Schematics ------------------ None Fabricated ------------ Nothing Repaired ---------- Nothing Studied --------- None Alien Tech Used ----------------- None Achievements -------------- None Challenges ------------ None Game ------ Seed SeismicSuspensionCasing Manual? 0 Play Time 00:34:06 Cumulative 644.4 hours Start 2026.06.29 @ 16:51:41 End 2026.06.29 @ 17:26:12 Sessions 3 Manual Loads 0 Difficulty Rogue Special Mode None Game No. 250 Rogue 250 Adventurer 0 Explorer 0 Win Type - Total 25 Types 10/3/7/1/0/0/1/2/0/1 Lore% 92 Gallery% 84 Achievement% 70 Wizard Run 0 Options --------- Layout 0 ASCII 0 Keyboard 1 Movement Numpad Keybinds 0 Fullscreen 2 Font 18/SmallcapsGlow Map View 76x50 Zoom Use 0% Tactical HUD 1 Map Filters NONE Filters NONE Steam 1 RUN: 01dccba3-ed94-490e-a8cf-c21b9b41e073